fUSD/lending_fUSD_20241108
["ID","MTS","AMOUNT","RATE_DAILY","PERIOD"]
[341619554,1731040274245,-559.39,0.00028767,2]
[341619555,1731040274260,-500.0,0.00028767,2]
[341619556,1731040274274,-969.47,0.00028767,2]
[341619557,1731040274289,-667.09,0.00028767,2]
[341619558,1731040274306,-500.0,0.00028767,2]
[341619559,1731040274321,-500.0,0.00028767,2]
[341619560,1731040274335,-616.18,0.00028767,2]
[341619561,1731040274349,-603.13,0.00028767,2]
[341619562,1731040274364,-533.0,0.00028767,2]
[341619563,1731040274380,-500.0,0.00028767,2]
[341619564,1731040274393,-500.0,0.00028767,2]
[341619565,1731040274408,-500.0,0.00028767,2]
[341619566,1731040274423,-517.27,0.00028767,2]
[341619567,1731040274438,-500.0,0.00028767,2]
[341619568,1731040274453,-500.0,0.00028767,2]
[341619569,1731040274468,-535.79,0.00028767,2]
[341619570,1731040274483,-500.0,0.00028767,2]
[341619571,1731040274498,-839.34,0.00028767,2]
[341619572,1731040274512,-500.0,0.00028767,2]
[341619573,1731040274527,-500.0,0.00028767,2]
[341619574,1731040274542,-500.0,0.00028767,2]
[341619575,1731040274556,-804.58,0.00028767,2]
[341619576,1731040274571,-500.0,0.00028767,2]
[341619577,1731040274586,-500.0,0.00028767,2]
[341619578,1731040274600,-500.0,0.00028767,2]
[341619579,1731040274617,-500.0,0.00028767,2]
[341619580,1731040274631,-500.0,0.00028767,2]
[341619581,1731040274646,-556.75,0.00028767,2]
[341619582,1731040274662,-500.0,0.00028767,2]
[341619583,1731040274677,-617.61,0.00028767,2]
[341619584,1731040274832,-500.0,0.00028767,2]
[341619585,1731040274846,-742.87,0.00028767,2]
[341619586,1731040274857,-1011.35,0.00028767,2]
[341619587,1731040274867,-665.71,0.00028767,2]
[341619588,1731040274877,-500.0,0.00028767,2]
[341619589,1731040274887,-510.79,0.00028767,2]
[341619590,1731040274898,-523.54,0.00028767,2]
[341619591,1731040274909,-500.0,0.00028767,2]
[341619592,1731040274919,-822.96,0.00028767,2]
[341619593,1731040274929,-500.0,0.00028767,2]
[341619594,1731040274939,-1318.45,0.00028767,2]
[341619595,1731040274948,-11445.03,0.00028767,2]
[341619596,1731040274958,-500.0,0.00028767,2]
[341619597,1731040274967,-492.1360037,0.00028767,2]
[341619598,1731040274977,-500.0,0.00028767,2]
[341619599,1731040274987,-1290.82,0.00028767,2]
[341619600,1731040274997,-500.0,0.00028767,2]
[341619601,1731040275007,-565.91,0.00028767,2]
[341619602,1731040275016,-568.67,0.00028767,2]
[341619603,1731040275026,-908.43,0.00028767,2]
[341619604,1731040275035,-500.0,0.00028767,2]
[341619605,1731040275045,-500.0,0.00028767,2]
[341619606,1731040275054,-679.63,0.00028767,2]
[341619607,1731040275064,-500.0,0.00028767,2]
[341619608,1731040275075,-500.0,0.00028767,2]
[341619609,1731040275085,-500.0,0.00028767,2]
[341619610,1731040275094,-500.0,0.00028767,2]
[341619611,1731040275104,-947.81,0.00028767,2]
[341619612,1731040275115,-1004.97,0.00028767,2]
[341619613,1731040275124,-1946.14,0.00028767,2]
[341619614,1731040275133,-1000.77,0.00028767,2]
[341619615,1731040275143,-1541.48,0.00028767,2]
[341619616,1731040275152,-500.0,0.00028767,2]
[341619617,1731040275162,-1865.63,0.00028767,2]
[341619618,1731040275172,-500.0,0.00028767,2]
[341619619,1731040275182,-500.0,0.00028767,2]
[341619620,1731040275191,-625.93,0.00028767,2]
[341619621,1731040275200,-500.0,0.00028767,2]
[341619622,1731040275210,-878.91,0.00028767,2]
[341619623,1731040275220,-1284.98,0.00028767,2]
[341619624,1731040275229,-500.0,0.00028767,2]
[341619625,1731040275239,-1707.34,0.00028767,2]
[341619626,1731040275249,-500.0,0.00028767,2]
[341619627,1731040275258,-500.0,0.00028767,2]
[341619628,1731040275268,-4089.6,0.00028767,2]
[341619629,1731040275277,-777.1,0.00028767,2]
[341619630,1731040275287,-500.0,0.00028767,2]
[341619631,1731040275296,-500.0,0.00028767,2]
[341619632,1731040275306,-572.44,0.00028767,2]
[341619633,1731040275315,-540.0,0.00028767,2]
[341619634,1731040275325,-473.76415726,0.00028767,2]
[341619635,1731040275334,-860.3,0.00028767,2]
[341619636,1731040275344,-500.0,0.00028767,2]
[341619637,1731040275353,-1216.65,0.00028767,2]
[341619638,1731040275364,-718.99,0.00028767,2]
[341619639,1731040275373,-500.0,0.00028767,2]
[341619640,1731040275382,-1260.73,0.00028767,2]
[341619641,1731040275392,-510.54,0.00028767,2]
[341619642,1731040275401,-500.0,0.00028767,2]
[341619643,1731040275411,-2704.99,0.00028767,2]
[341619644,1731040275420,-500.0,0.00028767,2]
[341619645,1731040275430,-500.0,0.00028767,2]
[341619646,1731040275439,-2331.48,0.00028767,2]
[341619647,1731040275449,-500.0,0.00028767,2]
[341619648,1731040275459,-1563.47,0.00028767,2]
[341619649,1731040275469,-614.09,0.00028767,2]
[341619650,1731040275478,-1346.4,0.00028767,2]
[341619651,1731040275489,-891.99,0.00028767,2]
[341619652,1731040275499,-500.0,0.00028767,2]
[341619653,1731040275508,-631.18,0.00028767,2]
[341619654,1731040275517,-749.48,0.00028767,2]
[341619655,1731040275526,-500.0,0.00028767,2]
[341619656,1731040275536,-500.0,0.00028767,2]
[341619657,1731040275545,-615.68,0.00028767,2]
[341619658,1731040275554,-500.0,0.00028767,2]
[341619659,1731040275563,-500.0,0.00028767,2]
[341619660,1731040275573,-500.0,0.00028767,2]
[341619661,1731040275582,-1000.0,0.00028767,2]
[341619662,1731040275592,-500.0,0.00028767,2]
[341619663,1731040275601,-500.0,0.00028767,2]
[341619664,1731040275612,-664.49,0.00028767,2]
[341619665,1731040275626,-938.36,0.00028767,2]
[341619666,1731040275635,-691.27,0.00028767,2]
[341619667,1731040275645,-500.0,0.00028767,2]
[341619668,1731040275654,-1808.93,0.00028767,2]
[341619669,1731040275663,-537.10874977,0.00028767,2]
[341619670,1731040275673,-500.0,0.00028767,2]
[341619671,1731040275683,-500.0,0.00028767,2]
[341619672,1731040275693,-1366.11,0.00028767,2]
[341619673,1731040275703,-567.59,0.00028767,2]
[341619674,1731040275712,-500.0,0.00028767,2]
[341619675,1731040275723,-603.44,0.00028767,2]
[341619676,1731040275733,-635.95,0.00028767,2]
[341619677,1731040275742,-500.0,0.00028767,2]
[341619678,1731040275752,-2158.79,0.00028767,2]
[341619679,1731040275761,-500.0,0.00028767,2]
[341619680,1731040275772,-620.25,0.00028767,2]
[341619681,1731040275781,-1709.09,0.00028767,2]
[341619682,1731040275790,-825.98,0.00028767,2]
[341619683,1731040275799,-5320.28,0.00028767,2]
[341619684,1731040275808,-500.0,0.00028767,2]
[341619685,1731040275817,-539.38,0.00028767,2]
[341619686,1731040275827,-587.5,0.00028767,2]
[341619687,1731040275838,-699.0,0.00028767,2]
[341619688,1731040275849,-658.39,0.00028767,2]
[341619689,1731040275858,-610.15,0.00028767,2]
[341619690,1731040275867,-500.0,0.00028767,2]
[341619691,1731040275878,-500.0,0.00028767,2]
[341619692,1731040275887,-500.0,0.00028767,2]
[341619693,1731040275896,-500.0,0.00028767,2]
[341619694,1731040275906,-500.0,0.00028767,2]
[341619695,1731040275917,-500.0,0.00028767,2]
[341619696,1731040275926,-816.52,0.00028767,2]
[341619697,1731040275935,-500.0,0.00028767,2]
[341619698,1731040275945,-585.69,0.00028767,2]
[341619699,1731040275956,-1241.53,0.00028767,2]
[341619700,1731040275967,-514.54,0.00028767,2]
[341619701,1731040275976,-748.63,0.00028767,2]
[341619702,1731040275985,-539.17,0.00028767,2]
[341619703,1731040275997,-847.32,0.00028767,2]
[341619704,1731040276007,-500.0,0.00028767,2]
[341619705,1731040276016,-601.57,0.00028767,2]
[341619706,1731040276027,-500.0,0.00028767,2]
[341619707,1731040276037,-1322.92,0.00028767,2]
[341619708,1731040276047,-500.0,0.00028767,2]
[341619709,1731040276057,-606.64,0.00028767,2]
[341619710,1731040276068,-1041.6,0.00028767,2]
[341619711,1731040276079,-885.51,0.00028767,2]
[341619712,1731040276089,-676.2,0.00028767,2]
[341619713,1731040276099,-3765.67,0.00028767,2]
[341619714,1731040276110,-1038.93,0.00028767,2]
[341619715,1731040276119,-1141.8,0.00028767,2]
[341619716,1731040276129,-1009.43,0.00028767,2]
[341619717,1731040276139,-500.0,0.00028767,2]
[341619718,1731040276149,-550.99,0.00028767,2]
[341619719,1731040276159,-1363.45,0.00028767,2]
[341619720,1731040276168,-500.0,0.00028767,2]
[341619721,1731040276177,-1604.37,0.00028767,2]
[341619722,1731040276187,-1269.12,0.00028767,2]
[341619723,1731040276196,-500.0,0.00028767,2]
[341619724,1731040276205,-1577.45,0.00028767,2]
[341619725,1731040276215,-491.81967032,0.00028767,2]
[341619726,1731040276224,-2314.52,0.00028767,2]
[341619727,1731040276234,-1843.27,0.00028767,2]
[341619728,1731040276243,-500.0,0.00028767,2]
[341619729,1731040276253,-3324.52,0.00028767,2]
[341619730,1731040276263,-981.73,0.00028767,2]
[341619731,1731040276272,-500.0,0.00028767,2]
[341619732,1731040276281,-614.85,0.00028767,2]
[341619733,1731040276291,-500.0,0.00028767,2]
[341619734,1731040276300,-844.68,0.00028767,2]
[341619735,1731040276310,-500.0,0.00028767,2]
[341619736,1731040276319,-502.64,0.00028767,2]
[341619737,1731040276329,-500.0,0.00028767,2]
[341619738,1731040276339,-1254.8,0.00028767,2]
[341619739,1731040276440,-906.84,0.00028767,2]
[341619740,1731040276450,-612.63,0.00028767,2]
[341619741,1731040276459,-500.0,0.00028767,2]
[341619742,1731040276468,-500.0,0.00028767,2]
[341619743,1731040276478,-950.1,0.00028767,2]
[341619744,1731040276487,-500.0,0.00028767,2]
[341619745,1731040276496,-2807.62,0.00028767,2]
[341619746,1731040276506,-500.0,0.00028767,2]
[341619747,1731040276515,-530.76,0.00028767,2]
[341619748,1731040276524,-465.45267874,0.00028767,2]
[341619749,1731040276534,-500.0,0.00028767,2]
[341619750,1731040276544,-500.0,0.00028767,2]
[341619751,1731040276555,-525.01,0.00028767,2]
[341619752,1731040276563,-343.16551691,0.00028767,2]
[341619753,1731040276573,-500.0,0.00028767,2]
[341619754,1731040276583,-581.69,0.00028767,2]
[341619755,1731040276592,-645.46,0.00028767,2]
[341619756,1731040276602,-500.0,0.00028767,2]
[341619757,1731040276614,-500.0,0.00028767,2]
[341619758,1731040276623,-500.0,0.00028767,2]
[341619759,1731040276632,-500.0,0.00028767,2]
[341619760,1731040276642,-422.16,0.0002877,120]
[341619761,1731040276651,-150.110806,0.00028798,6]
[341619762,1731040276661,-646.56945372,0.00028809,7]
[341619763,1731040276670,-500.0,0.00028809,7]
[341619764,1731040276679,-500.0,0.00028857,120]
[341619765,1731040276688,-200.0,0.00028857,120]
[341619766,1731040276698,-154.07,0.00028858,2]
[341619767,1731040276707,-2010.02090302,0.0002887,2]
[341619768,1731040276717,-515.98512689,0.0002887,2]
[341619769,1731040276727,-524.13776277,0.0002887,2]
[341619770,1731040276737,-150.721,0.00028872,2]
[341619771,1731040276747,-150.0,0.00028872,2]
[341619772,1731040276756,-500.0,0.00028983,2]
[341619773,1731040276765,-152.0,0.00028985,10]
[341619774,1731040276774,-154.459,0.0002899,2]
[341619775,1731040276784,-150.0,0.00029,60]
[341619776,1731040276794,-1300.0,0.00029,15]
[341619777,1731040276803,-1256.82156721,0.00029,3]
[341619778,1731040276813,-900.0,0.00029,30]
[341619779,1731040276822,-300.0,0.00029,5]
[341619780,1731040276831,-454.60003682,0.00029,2]
[341619781,1731040276846,-887.45734832,0.00029,2]
[341619782,1731040276855,-284.74692302,0.00029,2]
[341619783,1731040276866,-42874.24772051,0.00029,30]
[341619784,1731040276875,-700.0,0.00029,11]
[341619785,1731040276885,-700.0,0.00029,11]
[341619786,1731040276894,-700.0,0.00029,11]
[341619787,1731040276904,-700.0,0.00029,11]
[341619788,1731040276913,-700.0,0.00029,11]
[341619789,1731040276922,-700.0,0.00029,11]
[341619790,1731040276931,-700.0,0.00029,11]
[341619791,1731040276940,-700.0,0.00029,11]
[341619792,1731040276950,-700.0,0.00029,11]
[341619793,1731040276959,-700.0,0.00029,11]
[341619794,1731040276968,-585.64,0.00029,2]
[341619795,1731040276977,-585.64,0.00029,2]
[341619796,1731040276986,-585.64,0.00029,2]
[341619797,1731040276995,-585.64,0.00029,2]
[341619798,1731040277005,-585.64,0.00029,2]
[341619799,1731040277014,-585.64,0.00029,2]
[341619800,1731040277023,-585.64,0.00029,2]
[341619801,1731040277032,-585.64,0.00029,2]
[341619802,1731040277042,-585.64,0.00029,2]
[341619803,1731040277052,-585.64,0.00029,2]
[341619804,1731040277063,-585.64,0.00029,2]
[341619805,1731040277072,-585.64,0.00029,2]
[341619806,1731040277082,-585.64,0.00029,2]
[341619807,1731040277091,-585.64,0.00029,2]
[341619808,1731040277100,-585.64,0.00029,2]
[341619809,1731040277109,-585.64,0.00029,2]
[341619810,1731040277119,-585.64,0.00029,2]
[341619811,1731040277128,-585.64,0.00029,2]
[341619812,1731040277137,-585.64,0.00029,2]
[341619813,1731040277147,-585.64,0.00029,2]
[341619814,1731040277156,-230.36,0.0002901,2]
[341619815,1731040277166,-2000.0,0.00029041,2]
[341619816,1731040277176,-124.50783452,0.00029041,2]
[341619819,1731040453328,154.07,0.00015342,2]
[341619824,1731041018892,155.9,0.00015342,2]
[341619832,1731041348163,-635.39,0.00024406,2]
[341619833,1731041348904,1789.81028602,0.00025,14]
[341619837,1731041369177,-155.9,0.000247,2]
[341619838,1731041369199,-827.0,0.000247,2]
[341619854,1731041432112,-541.35289439,0.00025521,7]
[341619856,1731041432122,-250.0,0.00026033,2]
[341619858,1731041432132,-250.0,0.00026037,2]
[341619861,1731041432142,-284.95,0.00026331,120]
[341619863,1731041432152,-283.82,0.00026334,30]
[341619865,1731041432161,-224.55,0.00026351,2]
[341619867,1731041432170,-5197.64473861,0.00026351,2]
[341619873,1731041432223,-2663.91243218,0.00026351,2]
[341619876,1731041432497,-851.94168474,0.00026351,2]
[341619880,1731041438150,-1126.50512378,0.00026351,2]
[341619881,1731041438261,-2903.5,0.00026351,2]
[341619882,1731041438278,-371.265,0.00026351,2]
[341619885,1731041438667,-10785.23102069,0.00026351,2]
[341619887,1731041438679,-191.01,0.00026377,2]
[341619890,1731041438692,-150.0,0.00026411,2]
[341619892,1731041438703,-1000.0,0.0002643,2]
[341619894,1731041438717,-635.39,0.0002667,2]
[341619896,1731041438727,-152.0,0.00026695,3]
[341619899,1731041438740,-100000.0,0.0002688,2]
[341619901,1731041438751,-500.0,0.0002688,2]
[341619903,1731041438762,-7226.0,0.00027,3]
[341619905,1731041438773,-261.75,0.00027062,120]
[341619907,1731041438784,-153.57,0.00027149,2]
[341619909,1731041438795,-761.84,0.0002726,2]
[341619912,1731041438806,-248.89,0.0002726,2]
[341619914,1731041438817,-4206.03091335,0.00027297,2]
[341619916,1731041438829,-150.110806,0.00027298,3]
[341619918,1731041438841,-500.0,0.00027396,2]
[341619920,1731041438852,-500.0,0.00027396,2]
[341619923,1731041438862,-500.0,0.00027396,2]
[341619925,1731041438871,-531.4242554,0.00027396,2]
[341619927,1731041438882,-161.884909,0.00027397,2]
[341619929,1731041438893,-167.488082,0.00027397,2]
[341619931,1731041438905,-2268.48,0.00027397,2]
[341619934,1731041438918,-500.0,0.00027397,2]
[341619936,1731041438928,-500.0,0.00027397,2]
[341619938,1731041438938,-461.24112784,0.00027397,2]
[341619940,1731041438948,-500.0,0.00027397,2]
[341619942,1731041438957,-500.0,0.00027397,2]
[341619944,1731041438968,-500.0,0.00027397,2]
[341619946,1731041438979,-500.0,0.00027397,2]
[341619948,1731041438993,-500.0,0.00027397,2]
[341619949,1731041439006,-500.0,0.00027397,2]
[341619950,1731041439017,-500.0,0.00027397,2]
[341619951,1731041439027,-500.0,0.00027397,2]
[341619952,1731041439038,-500.0,0.00027397,2]
[341619953,1731041439048,-500.0,0.00027397,2]
[341619954,1731041439059,-500.0,0.00027397,2]
[341619956,1731041439069,-500.0,0.00027397,2]
[341619958,1731041439079,-500.0,0.00027397,2]
[341619960,1731041439089,-332.93740192,0.00027397,2]
[341619962,1731041439100,-500.0,0.00027397,2]
[341619964,1731041439110,-500.0,0.00027397,2]
[341619966,1731041439120,-500.0,0.00027397,2]
[341619968,1731041439130,-500.0,0.00027397,2]
[341619970,1731041439141,-500.0,0.00027397,2]
[341619972,1731041439151,-500.0,0.00027397,2]
[341619975,1731041439162,-500.0,0.00027397,2]
[341619977,1731041439172,-500.0,0.00027397,2]
[341619979,1731041439182,-500.0,0.00027397,2]
[341619981,1731041439192,-500.0,0.00027397,2]
[341619983,1731041439204,-811.38,0.00027397,2]
[341619985,1731041439215,-618.82,0.00027397,2]
[341619987,1731041439226,-500.0,0.00027397,2]
[341619989,1731041439237,-500.0,0.00027397,2]
[341619992,1731041439248,-500.0,0.00027397,2]
[341619994,1731041439259,-500.0,0.00027397,2]
[341619996,1731041439270,-500.0,0.00027397,2]
[341619998,1731041439280,-508.51,0.00027397,2]
[341620000,1731041439291,-500.0,0.00027397,2]
[341620002,1731041439301,-500.0,0.00027397,2]
[341620005,1731041439311,-500.0,0.00027397,2]
[341620007,1731041439321,-500.0,0.00027397,2]
[341620009,1731041439332,-500.0,0.00027397,2]
[341620011,1731041439342,-500.0,0.00027397,2]
[341620013,1731041439352,-500.0,0.00027397,2]
[341620015,1731041439362,-500.0,0.00027397,2]
[341620017,1731041439372,-500.0,0.00027397,2]
[341620019,1731041439382,-500.0,0.00027397,2]
[341620022,1731041439393,-500.0,0.00027397,2]
[341620024,1731041439403,-500.0,0.00027397,2]
[341620026,1731041439414,-500.0,0.00027397,2]
[341620028,1731041439425,-965.72,0.00027397,2]
[341620030,1731041439435,-500.0,0.00027397,2]
[341620031,1731041439446,-500.0,0.00027397,2]
[341620033,1731041439457,-500.0,0.00027397,2]
[341620035,1731041439467,-462.92571036,0.00027397,2]
[341620037,1731041439478,-500.0,0.00027397,2]
[341620039,1731041439488,-500.0,0.00027397,2]
[341620041,1731041439499,-500.0,0.00027397,2]
[341620044,1731041439510,-500.0,0.00027397,2]
[341620046,1731041439520,-500.0,0.00027397,2]
[341620048,1731041439530,-500.0,0.00027397,2]
[341620050,1731041439541,-500.0,0.00027397,2]
[341620052,1731041439551,-617.87229828,0.00027397,2]
[341620054,1731041439561,-500.0,0.00027397,2]
[341620056,1731041439572,-500.0,0.00027397,2]
[341620058,1731041439582,-557.88,0.00027397,2]
[341620060,1731041439592,-500.0,0.00027397,2]
[341620062,1731041439603,-500.0,0.00027397,2]
[341620064,1731041439613,-500.0,0.00027397,2]
[341620066,1731041439625,-295.12937553,0.00027397,2]
[341620068,1731041439635,-500.0,0.00027397,2]
[341620071,1731041439649,-500.0,0.00027397,2]
[341620073,1731041439660,-500.0,0.00027397,2]
[341620075,1731041439670,-500.0,0.00027397,2]
[341620077,1731041439680,-500.0,0.00027397,2]
[341620079,1731041439691,-500.0,0.00027397,2]
[341620081,1731041439701,-500.0,0.00027397,2]
[341620083,1731041439711,-170.11,0.00027397,2]
[341620085,1731041439722,-500.32,0.00027397,2]
[341620087,1731041439732,-500.0,0.00027397,2]
[341620089,1731041439742,-500.0,0.00027397,2]
[341620091,1731041439755,-500.0,0.00027397,2]
[341620093,1731041439766,-500.0,0.00027397,2]
[341620096,1731041439777,-562.11,0.00027397,2]
[341620098,1731041439787,-500.0,0.00027397,2]
[341620100,1731041439798,-500.0,0.00027397,2]
[341620102,1731041439808,-614.30480448,0.00027397,2]
[341620104,1731041439818,-660.81,0.00027397,2]
[341620106,1731041439829,-757.07,0.00027397,2]
[341620108,1731041439839,-500.0,0.00027397,2]
[341620110,1731041439849,-561.67349988,0.00027397,2]
[341620112,1731041439859,-675.07,0.00027397,2]
[341620114,1731041439870,-500.0,0.00027397,2]
[341620116,1731041439880,-440.3675489,0.00027397,2]
[341620118,1731041439890,-479.80637322,0.00027397,2]
[341620120,1731041439901,-500.0,0.00027397,2]
[341620123,1731041439911,-500.0,0.00027397,2]
[341620125,1731041439921,-500.0,0.00027397,2]
[341620127,1731041439932,-736.29,0.00027397,2]
[341620129,1731041439942,-500.0,0.00027397,2]
[341620131,1731041439953,-500.0,0.00027397,2]
[341620133,1731041439963,-500.0,0.00027397,2]
[341620135,1731041439973,-500.0,0.00027397,2]
[341620137,1731041439986,-500.0,0.00027397,2]
[341620139,1731041439998,-500.0,0.00027397,2]
[341620141,1731041440009,-500.0,0.00027397,2]
[341620143,1731041440019,-500.0,0.00027397,2]
[341620145,1731041440030,-500.0,0.00027397,2]
[341620148,1731041440040,-48.73725825,0.00027397,2]
[341620151,1731041440064,-451.26274175,0.00027397,2]
[341620152,1731041440074,-500.0,0.00027397,2]
[341620153,1731041440084,-500.0,0.00027397,2]
[341620154,1731041440094,-500.0,0.00027397,2]
[341620155,1731041440104,-629.51,0.00027397,2]
[341620156,1731041440114,-727.1,0.00027397,2]
[341620157,1731041440124,-500.0,0.00027397,2]
[341620158,1731041440134,-500.0,0.00027397,2]
[341620159,1731041440144,-500.0,0.00027397,2]
[341620160,1731041440154,-500.0,0.00027397,2]
[341620161,1731041440165,-500.0,0.00027397,2]
[341620162,1731041440175,-500.0,0.00027397,2]
[341620163,1731041440185,-500.0,0.00027397,2]
[341620164,1731041440195,-500.0,0.00027397,2]
[341620165,1731041440206,-500.0,0.00027397,2]
[341620166,1731041440216,-500.0,0.00027397,2]
[341620167,1731041440227,-500.0,0.00027397,2]
[341620168,1731041440237,-500.0,0.00027397,2]
[341620169,1731041440251,-500.0,0.00027397,2]
[341620170,1731041440261,-26.74366701,0.00027397,2]
[341620443,1731041443468,-473.25633299,0.00027397,2]
[341620444,1731041443478,-500.0,0.00027397,2]
[341620446,1731041443487,-408.8555573,0.00027397,2]
[341620711,1731041446102,-303.7244427,0.00027397,2]
[341620713,1731041446113,-500.0,0.00027397,2]
[341620715,1731041446123,-500.0,0.00027397,2]
[341620717,1731041446132,-500.0,0.00027397,2]
[341620719,1731041446143,-500.0,0.00027397,2]
[341620721,1731041446154,-500.0,0.00027397,2]
[341620723,1731041446164,-562.76,0.00027397,2]
[341620725,1731041446173,-500.0,0.00027397,2]
[341620727,1731041446184,-646.24906541,0.00027397,2]
[341620753,1731041446428,-509.86093459,0.00027397,2]
[341620755,1731041446438,-500.0,0.00027397,2]
[341620757,1731041446449,-360.71656735,0.00027397,2]
[341620901,1731041556161,163.6,0.00015342,2]
[341620906,1731042116054,160.14,0.00015342,2]
[341620907,1731042359115,-173.62,0.00020959,2]
[341620908,1731042359136,-261.48247075,0.00022078,2]
[341620909,1731042359158,-177.8775,0.00022178,2]
[341620910,1731042359180,-261.48247074,0.0002293,2]
[341620911,1731042359200,-173.70857153,0.00023782,2]
[341620912,1731042381915,150.0,0.00025,7]
[341620914,1731042546265,-571.85,0.00023882,2]
[341620925,1731042638471,-503.07513458,0.00025521,7]
[341620926,1731042638482,-500.0,0.00025521,7]
[341620927,1731042638491,-150.5,0.00025684,2]
[341620928,1731042638502,-15.97886544,0.00025782,2]
[341620929,1731042638582,-234.02113456,0.00025782,2]
[341620930,1731042638592,-250.0,0.00025788,2]
[341620931,1731042638601,-23900.0,0.00025826,2]
[341620932,1731042638611,-191.01,0.00025839,2]
[341620933,1731042638620,-209.4,0.00025927,120]
[341620934,1731042638630,-250.0,0.00025927,2]
[341620935,1731042638639,-197.46,0.00025927,10]
[341620936,1731042638649,-200.0,0.00025946,2]
[341620937,1731042638658,-277.29,0.00025951,30]
[341620938,1731042638669,-187.12,0.00026,2]
[341620939,1731042638678,-571.85,0.00026146,2]
[341620940,1731042638687,-1000.0,0.00026366,2]
[341620942,1731042638697,-153.57,0.00026583,2]
[341620944,1731042638705,-8196.1,0.00026591,2]
[341620946,1731042638714,-12214.68149401,0.00026591,2]
[341621466,1731042643800,-4154.47015087,0.00026591,2]
[341621469,1731042643811,-3560.25835512,0.00026591,2]
[341621471,1731042643819,-269.36,0.00026591,2]
[341621473,1731042643828,-362.64,0.00026728,120]
[341621475,1731042643838,-190.00936793,0.00027128,2]
[341621477,1731042643846,-500.0,0.00027128,2]
[341621478,1731042643855,-479.9987029,0.00027128,2]
[341621481,1731042643864,-475.534,0.00027129,2]
[341621482,1731042643874,-150.0,0.00027129,2]
[341621485,1731042643883,-5924.0,0.00027129,2]
[341621487,1731042643892,-1090.0,0.00027129,2]
[341621488,1731042643901,-500.0,0.00027165,7]
[341621490,1731042643910,-150.110806,0.00027248,3]
[341621493,1731042643919,-34283.4097,0.00027297,2]
[341621494,1731042643931,-761.785,0.00027297,2]
[341621496,1731042643940,-1000.0,0.00027297,2]
[341621498,1731042643949,-2500.0,0.00027297,2]
[341621500,1731042643958,-263.6391737,0.00027297,2]
[341621502,1731042643968,-3787.62187118,0.00027297,2]
[341621505,1731042643978,-150.110806,0.00027318,4]
[341621506,1731042643987,-150.110806,0.00027348,3]
[341621508,1731042643996,-500.0,0.0002739,2]
[341621511,1731042644006,-150.110806,0.00027396,3]
[341621512,1731042644015,-4261.07,0.00027396,2]
[341621514,1731042644024,-154.885387,0.00027397,2]
[341621516,1731042644033,-167.488082,0.00027397,2]
[341621518,1731042644042,-324.2987919,0.00027397,2]